Workbook

Sheet 11-18 лет
A1: СОГЛАСОВАНО | O1: УТВЕРЖДЕНО
O2: ООО "КРЕПЫШ"
O3: _______________________Ефремов В.Ю.
A6: Меню для организации 2-х разового питания детей возрасте от 11 до 18 лет в образовательных учреждениях Мензелинского района РТ на 1 полугодие 2024-2025 учебный год.
A8: 1 день, 1 неделя
A9: № рецептуры | B9: Прием пищи, наименование блюда | C9: Масса | D9: Пищевые вещества | G9: Энергетическая ценность | H9: Витамины | M9: Минеральные вещества
D10: Белки | E10: Жиры | F10: Углеводы | H10: B1 | I10: B2 | J10: A | K10: D | L10: C | M10: Na | N10: K | O10: Ca | P10: Mg | Q10: P | R10: Fe | S10: I | T10: Se | U10: F
C11: г | D11: г | E11: г | F11: г | G11: ккал | H11: мг | I11: мг | J11: мкг рет.экв | K11: мкг | L11: мг | M11: мг | N11: мг | O11: мг | P11: мг | Q11: мг | R11: мг | S11: мкг | T11: мкг | U11: мкг
B12: Понедельник, 1 неделя
B13: Завтрак | C13: 11-18
A14: 54-13з | B14: Салат из свеклы отварной с растительным маслом | C14: 100 | D14: 1.34 | E14: 4.48 | F14: 7.61 | G14: 76.1 | H14: 0.01 | I14: 0.03 | J14: 1.14 | K14: 0 | L14: 4 | M14: 131 | N14: 227 | O14: 32 | P14: 18 | Q14: 36 | R14: 1.2 | S14: 19.98 | T14: 0.6 | U14: 19
A15: 54-11г-2020 | B15: Картофельное пюре | C15: 180 | D15: 3.69 | E15: 6.37 | F15: 23.79 | G15: 167.3 | H15: 0.14 | I15: 0.12 | J15: 28.55 | K15: 0.11 | L15: 12 | M15: 195 | N15: 750 | O15: 47 | P15: 34 | Q15: 101 | R15: 1.2 | S15: 34.15 | T15: 1 | U15: 51.35
A16: № Т/К 272 | B16: Котлета рубленная из говядины с соусом | C16: 65/35 | D16: 9.3 | E16: 7.1 | F16: 11.8 | G16: 148.6 | H16: 0 | I16: 0 | J16: 0 | K16: 0 | L16: 1.4 | M16: 0 | N16: 0 | O16: 16 | P16: 19.2 | Q16: 97 | R16: 1.7 | S16: 0 | T16: 0 | U16: 0
A17: 54-2гн-2020 | B17: Чай с сахаром | C17: 200 | D17: 0.2 | E17: 0 | F17: 6.4 | G17: 26.8 | H17: 0 | I17: 0.01 | J17: 0.3 | K17: 0 | L17: 0.04 | M17: 0.68 | N17: 20.76 | O17: 66.08 | P17: 3.83 | Q17: 7.18 | R17: 0.73 | S17: 0 | T17: 0 | U17: 0
A18: Пром. | B18: Хлеб пшеничный | C18: 20 | D18: 1.52 | E18: 0.16 | F18: 9.84 | G18: 46.9 | H18: 0.02 | I18: 0.01 | J18: 0 | K18: 0 | L18: 0 | M18: 100 | N18: 19 | O18: 4 | P18: 3 | Q18: 13 | R18: 0.2 | S18: 0.64 | T18: 1.2 | U18: 2.9
A19: Пром. | B19: Хлеб ржаной | C19: 20 | D19: 1.3 | E19: 0.2 | F19: 6.7 | G19: 34.2 | H19: 0.04 | I19: 0.02 | J19: 0 | K19: 0 | L19: 0 | M19: 122 | N19: 49 | O19: 7 | P19: 9.4 | Q19: 31.6 | R19: 0.78 | S19: 0 | T19: 6.18 | U19: 0
B20: Итого за завтрак | C20: 620 | D20: =SUM(D14:D19) -> 17.35 | E20: =SUM(E14:E19) -> 18.31 | F20: 66.14 | G20: 499.9 | H20: 0.21 | I20: 0.19 | J20: 29.99 | K20: 0.11 | L20: 17.44 | M20: 548.68 | N20: 1065.76 | O20: 172.08 | P20: 87.43 | Q20: 285.78 | R20: 5.81 | S20: 54.77 | T20: 8.98 | U20: 73.25
B21: Обед | C21: 11-18
A22: 54-7з | B22: Салат из белокочанной капусты с растительным маслом | C22: 100 | D22: 2.52 | E22: 10.15 | F22: 10.39 | G22: 143 | H22: 0.03 | I22: 0.05 | J22: 122.25 | K22: 0 | L22: 23 | M22: 112 | N22: 343 | O22: 59 | P22: 21 | Q22: 44 | R22: 0.9 | S22: 17.88 | T22: 0.3 | U22: 21.1
A23: № Т/к 100 | B23: Суп картофельный с вермишелью | C23: 250 | D23: 2.81 | E23: 2.8 | F23: 20.2 | G23: 118 | H23: 0.1 | I23: 0 | J23: 0.2 | K23: 0 | L23: 6.6 | M23: 0 | N23: 0 | O23: 23.9 | P23: 23.4 | Q23: 57.7 | R23: 1.1 | S23: 0 | T23: 0 | U23: 0
A24: Т/к №102 | B24: Оладьи П/Ф (35 гр) 2шт | C24: 70 | D24: 5.06 | E24: 6.44 | F24: 29.51 | G24: 206.64 | H24: 0.09 | I24: 0 | J24: 0.01 | K24: 0 | L24: 0.68 | M24: 0 | N24: 0 | O24: 55.22 | P24: 12.31 | Q24: 72.66 | R24: 0.9 | S24: 0 | T24: 0 | U24: 0
A25: 54-4гн-2020 | B25: Чай с молоком и сахаром | C25: 200 | D25: 1.6 | E25: 1.1 | F25: 8.6 | G25: 50.9 | H25: 0.01 | I25: 0.07 | J25: 6.9 | K25: 0 | L25: 0.3 | M25: 19.68 | N25: 81.35 | O25: 103.48 | P25: 9.92 | Q25: 46.33 | R25: 0.78 | S25: 4.5 | T25: 0.88 | U25: 10
A26: Пром. | B26: Хлеб ржаной | C26: 20 | D26: 1.3 | E26: 0.2 | F26: 6.7 | G26: 34.2 | H26: 0.04 | I26: 0.02 | J26: 0 | K26: 0 | L26: 0 | M26: 122 | N26: 49 | O26: 7 | P26: 9.4 | Q26: 31.6 | R26: 0.78 | S26: 0 | T26: 6.18 | U26: 0
B27: Итого за обед | C27: =SUM(C22:C26) -> 640 | D27: =SUM(D22:D26) -> 13.29 | E27: =SUM(E22:E26) -> 20.69 | F27: 75.4 | G27: 552.74 | H27: 0.27 | I27: 0.14 | J27: 129.36 | K27: 0 | L27: 30.58 | M27: 253.68 | N27: 473.35 | O27: 248.6 | P27: 76.03 | Q27: 252.29 | R27: 4.46 | S27: 22.38 | T27: 7.36 | U27: 31.1
B28: Итого за день | C28: =C27+C20 -> 1260 | D28: =D27+D20 -> 30.64 | E28: 39 | F28: 141.54 | G28: 1052.64 | H28: 0.48 | I28: 0.33 | J28: 159.35 | K28: 0.11 | L28: 48.02 | M28: 802.36 | N28: 1539.11 | O28: 420.68 | P28: 163.46 | Q28: 538.07 | R28: 10.27 | S28: 77.15 | T28: 16.34 | U28: 104.35
A30: 2 день, 1 неделя
A31: № рецептуры | B31: Прием пищи, наименование блюда | C31: Масса | D31: Пищевые вещества | G31: Энергетическая ценность | H31: Витамины | M31: Минеральные вещества
D32: Белки | E32: Жиры | F32: Углеводы | H32: B1 | I32: B2 | J32: A | K32: D | L32: C | M32: Na | N32: K | O32: Ca | P32: Mg | Q32: P | R32: Fe | S32: I | T32: Se | U32: F
C33: г | D33: г | E33: г | F33: г | G33: ккал | H33: мг | I33: мг | J33: мкг рет.экв | K33: мкг | L33: мг | M33: мг | N33: мг | O33: мг | P33: мг | Q33: мг | R33: мг | S33: мкг | T33: мкг | U33: мкг
B34: Вторник, 1 неделя
B35: Завтрак | C35: 11-18
A36: Пром. | B36: Сушка простая | C36: 14 | D36: 1.53 | E36: 0.18 | F36: 9.63 | G36: 46.3 | H36: 0.03 | I36: 0.01 | J36: 0 | K36: 0 | L36: 0 | M36: 85 | N36: 26 | O36: 4 | P36: 6 | Q36: 17 | R36: 0.4 | S36: 0 | T36: 0 | U36: 0
A37: № Т/к 67 | B37: Щи из свежей капусты с картофелем | C37: 250 | D37: 1.9 | E37: 5.1 | F37: 9.3 | G37: 90.5 | H37: 0 | I37: 0 | J37: 0.2 | K37: 0 | L37: 12.4 | M37: 0 | N37: 0 | O37: 41.5 | P37: 22 | Q37: 42.7 | R37: 1.1 | S37: 0 | T37: 0 | U37: 0
A38: № Т/к 438 | B38: Напиток яблочный | C38: 200 | D38: 0.1 | E38: 0.1 | F38: 13.9 | G38: 57.8 | H38: 0 | I38: 0 | J38: 0 | K38: 0 | L38: 1 | M38: 0 | N38: 0 | O38: 12.3 | P38: 3.7 | Q38: 2.4 | R38: 0.5 | S38: 0 | T38: 0 | U38: 0
A39: Пром. | B39: Хлеб пшеничный | C39: 20 | D39: 1.52 | E39: 0.16 | F39: 9.84 | G39: 46.9 | H39: 0.02 | I39: 0.01 | J39: 0 | K39: 0 | L39: 0 | M39: 100 | N39: 19 | O39: 4 | P39: 3 | Q39: 13 | R39: 0.2 | S39: 0.64 | T39: 1.2 | U39: 2.9
A40: Пром. | B40: Хлеб ржаной | C40: 20 | D40: 1.3 | E40: 0.2 | F40: 6.7 | G40: 34.2 | H40: 0.04 | I40: 0.02 | J40: 0 | K40: 0 | L40: 0 | M40: 122 | N40: 49 | O40: 7 | P40: 9.4 | Q40: 31.6 | R40: 0.78 | S40: 0 | T40: 6.18 | U40: 0
B41: Итого за завтрак | C41: =SUM(C36:C40) -> 504 | D41: =SUM(D36:D40) -> 6.35 | E41: =SUM(E36:E40) -> 5.74 | F41: 49.37 | G41: 275.7 | H41: 0.09 | I41: 0.04 | J41: 0.2 | K41: 0 | L41: 13.4 | M41: 307 | N41: 94 | O41: 68.8 | P41: 44.1 | Q41: 106.7 | R41: 2.98 | S41: 0.64 | T41: 7.38 | U41: 2.9
B42: Обед | C42: 11-18
A43: №Т/К 41 | B43: Салат из моркови с сахаром и растительным маслом | C43: 100 | D43: 0.91 | E43: 10.17 | F43: 7.15 | G43: 123.8 | H43: 0.04 | I43: 0.03 | J43: 732.9 | K43: 0 | L43: 2 | M43: 114 | N43: 170 | O43: 19 | P43: 22 | Q43: 32 | R43: 1 | S43: 16.98 | T43: 0.2 | U43: 35.95
A44: 54-6г-2020 | B44: Рис отварной | C44: 180 | D44: 4.32 | E44: 5.78 | F44: 43.74 | G44: 244.2 | H44: 0.04 | I44: 0.03 | J44: 22.03 | K44: 0.11 | L44: 0 | M44: 184 | N44: 56 | O44: 129 | P44: 28 | Q44: 87 | R44: 0.6 | S44: 24.91 | T44: 8.7 | U44: 32.63
A45: №Т/К 272 | B45: Котлета мясная с соусом | C45: 65/35 | D45: 11.4 | E45: 9.3 | F45: 12.4 | G45: 179.2 | H45: 0 | I45: 0 | J45: 0.1 | K45: 0 | L45: 1.8 | M45: 0 | N45: 0 | O45: 18.9 | P45: 22.1 | Q45: 115.5 | R45: 1.9 | S45: 0 | T45: 0 | U45: 0
A46: №Т/К 436 | B46: Напиток апельсиновый | C46: 200 | D46: 0.2 | E46: 0 | F46: 13 | G46: 53.5 | H46: 0 | I46: 0 | J46: 0 | K46: 0 | L46: 4 | M46: 0 | N46: 0 | O46: 13.5 | P46: 3.8 | Q46: 3.5 | R46: 0.1 | S46: 0 | T46: 0 | U46: 0
A47: Пром. | B47: Хлеб пшеничный | C47: 20 | D47: 1.52 | E47: 0.16 | F47: 9.84 | G47: 46.9 | H47: 0.02 | I47: 0.01 | J47: 0 | K47: 0 | L47: 0 | M47: 100 | N47: 19 | O47: 4 | P47: 3 | Q47: 13 | R47: 0.2 | S47: 0.64 | T47: 1.2 | U47: 2.9
A48: Пром. | B48: Хлеб ржаной | C48: 20 | D48: 1.3 | E48: 0.2 | F48: 6.7 | G48: 34.2 | H48: 0.04 | I48: 0.02 | J48: 0 | K48: 0 | L48: 0 | M48: 122 | N48: 49 | O48: 7 | P48: 9.4 | Q48: 31.6 | R48: 0.78 | S48: 0 | T48: 6.18 | U48: 0
B49: Итого за обед | C49: 620 | D49: =SUM(D43:D48) -> 19.65 | E49: 25.61 | F49: 92.83 | G49: 681.8 | H49: 0.14 | I49: 0.09 | J49: 755.03 | K49: 0.11 | L49: 7.8 | M49: 520 | N49: 294 | O49: 191.4 | P49: 88.3 | Q49: 282.6 | R49: 4.58 | S49: 42.53 | T49: 16.28 | U49: 71.48
B50: Итого за день | C50: =C49+C41 -> 1124 | D50: =D49+D41 -> 26 | E50: 31.35 | F50: 142.2 | G50: 957.5 | H50: 0.23 | I50: 0.13 | J50: 755.23 | K50: 0.11 | L50: 21.2 | M50: 827 | N50: 388 | O50: 260.2 | P50: 132.4 | Q50: 389.3 | R50: 7.56 | S50: 43.17 | T50: 23.66 | U50: 74.38
A52: 3 день, 1 неделя
A53: № рецептуры | B53: Прием пищи, наименование блюда | C53: Масса | D53: Пищевые вещества | G53: Энергетическая ценность | H53: Витамины | M53: Минеральные вещества
D54: Белки | E54: Жиры | F54: Углеводы | H54: B1 | I54: B2 | J54: A | K54: D | L54: C | M54: Na | N54: K | O54: Ca | P54: Mg | Q54: P | R54: Fe | S54: I | T54: Se | U54: F
C55: г | D55: г | E55: г | F55: г | G55: ккал | H55: мг | I55: мг | J55: мкг рет.экв | K55: мкг | L55: мг | M55: мг | N55: мг | O55: мг | P55: мг | Q55: мг | R55: мг | S55: мкг | T55: мкг | U55: мкг
B56: Среда, 1 неделя
B57: Завтрак | C57: 11-18
A58: № Т/К 40 | B58: Салат картофельный с морковью и растительным маслом | C58: 100 | D58: 2.4 | E58: 7.2 | F58: 8.9 | G58: 110.4 | H58: 0.1 | I58: 0 | J58: 0.6 | K58: 0 | L58: 5.6 | M58: 0 | N58: 0 | O58: 25 | P58: 21.9 | Q58: 55.7 | R58: 1 | S58: 0 | T58: 0 | U58: 0
A59: № Т/К 62 | B59: Борщ | C59: 250 | D59: 2.7 | E59: 5.9 | F59: 15.3 | G59: 126.6 | H59: 0.1 | I59: 0 | J59: 0.3 | K59: 0 | L59: 11.4 | M59: 0 | N59: 0 | O59: 49.9 | P59: 32.1 | Q59: 65.6 | R59: 1.7 | S59: 0 | T59: 0 | U59: 0
A60: № Т/К 440 | B60: Напиток из сухофруктов | C60: 200 | D60: 0 | E60: 0 | F60: 14.6 | G60: 58.1 | H60: 0 | I60: 0 | J60: 0 | K60: 0 | L60: 0 | M60: 0 | N60: 0 | O60: 8.4 | P60: 1.8 | Q60: 0 | R60: 0 | S60: 0 | T60: 0 | U60: 0
A61: Пром. | B61: Хлеб ржаной | C61: 20 | D61: 1.3 | E61: 0.2 | F61: 6.7 | G61: 34.2 | H61: 0.04 | I61: 0.02 | J61: 0 | K61: 0 | L61: 0 | M61: 122 | N61: 49 | O61: 7 | P61: 9.4 | Q61: 31.6 | R61: 0.78 | S61: 0 | T61: 6.18 | U61: 0
A62: Пром. | B62: Булочка ванильная | C62: 60 | D62: 4.68 | E62: 4.03 | F62: 30.46 | G62: 177 | H62: 0.05 | I62: 0.02 | J62: 19.12 | K62: 0.15 | L62: 0 | M62: 241 | N62: 50 | O62: 18 | P62: 6 | Q62: 41 | R62: 0.5 | S62: 33.36 | T62: 3.1 | U62: 11.03
B63: Итого за завтрак | C63: =SUM(C58:C62) -> 630 | D63: =SUM(D58:D62) -> 11.08 | E63: =SUM(E58:E62) -> 17.33 | F63: 75.96 | G63: 506.3 | H63: 0.29 | I63: 0.04 | J63: 20.02 | K63: 0.15 | L63: 17 | M63: 363 | N63: 99 | O63: 108.3 | P63: 71.2 | Q63: 193.9 | R63: 3.98 | S63: 33.36 | T63: 9.28 | U63: 11.03
B64: Обед | C64: 11-18
A65: 54-13з | B65: Салат из свеклы отварной с растительным маслом | C65: 100 | D65: 1.34 | E65: 4.48 | F65: 7.61 | G65: 76.1 | H65: 0.01 | I65: 0.03 | J65: 1.14 | K65: 0 | L65: 4 | M65: 131 | N65: 227 | O65: 32 | P65: 18 | Q65: 36 | R65: 1.2 | S65: 19.98 | T65: 0.6 | U65: 19
A66: 54-1г-2020 | B66: Макароны отварные | C66: 180 | D66: 6.39 | E66: 5.91 | F66: 39.36 | G66: 236.2 | H66: 0.07 | I66: 0.03 | J66: 22.03 | K66: 0.11 | L66: 0 | M66: 179 | N66: 64 | O66: 127 | P66: 9 | Q66: 48 | R66: 0.9 | S66: 24.92 | T66: 0.1 | U66: 14.31
A67: №243 | B67: Сосиски говяжьи отварные, п/ф (2 шт) | C67: 100 | D67: 6.6 | E67: 10.35 | F67: 6.5 | G67: 202.15 | H67: 0 | I67: 0 | J67: 0.08 | K67: 0.01 | L67: 0 | M67: 0 | N67: 0 | O67: 7.44 | P67: 15.51 | Q67: 137.39 | R67: 1.74 | S67: 0 | T67: 0 | U67: 0
A68: 54-3гн-2020 | B68: Чай с лимоном и сахаром | C68: 207 | D68: 0.2 | E68: 0.1 | F68: 6.6 | G68: 27.9 | H68: 0 | I68: 0.01 | J68: 0.38 | K68: 0 | L68: 1.16 | M68: 1.26 | N68: 30.23 | O68: 67 | P68: 4.56 | Q68: 8.52 | R68: 0.77 | S68: 0.01 | T68: 0.02 | U68: 0.7
A69: Пром. | B69: Хлеб ржаной | C69: 20 | D69: 1.3 | E69: 0.2 | F69: 6.7 | G69: 34.2 | H69: 0.04 | I69: 0.02 | J69: 0 | K69: 0 | L69: 0 | M69: 122 | N69: 49 | O69: 7 | P69: 9.4 | Q69: 31.6 | R69: 0.78 | S69: 0 | T69: 6.18 | U69: 0
A70: Пром. | B70: Хлеб пшеничный | C70: 20 | D70: 1.52 | E70: 0.16 | F70: 9.84 | G70: 46.9 | H70: 0.02 | I70: 0.01 | J70: 0 | K70: 0 | L70: 0 | M70: 100 | N70: 19 | O70: 4 | P70: 3 | Q70: 13 | R70: 0.2 | S70: 0.64 | T70: 1.2 | U70: 2.9
B71: Итого за обед | C71: 639 | D71: =SUM(D65:D70) -> 17.35 | E71: 21.2 | F71: 76.61 | G71: 623.45 | H71: 0.14 | I71: 0.1 | J71: 23.63 | K71: 0.12 | L71: 5.16 | M71: 533.26 | N71: 389.23 | O71: 244.44 | P71: 59.47 | Q71: 274.51 | R71: 5.59 | S71: 45.55 | T71: 8.1 | U71: 36.91
B72: Итого за день | C72: =C71+C63 -> 1269 | D72: 28.43 | E72: 38.53 | F72: 152.57 | G72: 1129.75 | H72: 0.43 | I72: 0.14 | J72: 43.65 | K72: 0.27 | L72: 22.16 | M72: 896.26 | N72: 488.23 | O72: 352.74 | P72: 130.67 | Q72: 468.41 | R72: 9.57 | S72: 78.91 | T72: 17.38 | U72: 47.94
A74: 4 день, 1 неделя
A75: № рецептуры | B75: Прием пищи, наименование блюда | C75: Масса | D75: Пищевые вещества | G75: Энергетическая ценность | H75: Витамины | M75: Минеральные вещества
D76: Белки | E76: Жиры | F76: Углеводы | H76: B1 | I76: B2 | J76: A | K76: D | L76: C | M76: Na | N76: K | O76: Ca | P76: Mg | Q76: P | R76: Fe | S76: I | T76: Se | U76: F
C77: г | D77: г | E77: г | F77: г | G77: ккал | H77: мг | I77: мг | J77: мкг рет.экв | K77: мкг | L77: мг | M77: мг | N77: мг | O77: мг | P77: мг | Q77: мг | R77: мг | S77: мкг | T77: мкг | U77: мкг
B78: Четверг, 1 неделя
B79: Завтрак | C79: 11-18
A80: № Т/К 50 | B80: Салат свеколка с маслом растительным | C80: 100 | D80: 1.8 | E80: 10.1 | F80: 16.2 | G80: 163.2 | H80: 0 | I80: 0 | J80: 0.1 | K80: 0 | L80: 3.5 | M80: 0 | N80: 0 | O80: 45.5 | P80: 27.5 | Q80: 52.8 | R80: 1.5 | S80: 0 | T80: 0 | U80: 0
A81: № Т/к | B81: Суп рисовый | C81: 250 | D81: 2.4 | E81: 2 | F81: 19.7 | G81: 105.4 | H81: 0.1 | I81: 0 | J81: 0.2 | K81: 0 | L81: 5.8 | M81: 0 | N81: 0 | O81: 21.9 | P81: 25.4 | Q81: 58.9 | R81: 0.8 | S81: 0 | T81: 0 | U81: 0
A82: 54-2гн-2020 | B82: Чай с сахаром | C82: 200 | D82: 0.2 | E82: 0 | F82: 6.4 | G82: 26.8 | H82: 0 | I82: 0.01 | J82: 0.3 | K82: 0 | L82: 0.04 | M82: 0.68 | N82: 20.76 | O82: 66.08 | P82: 3.83 | Q82: 7.18 | R82: 0.73 | S82: 0 | T82: 0 | U82: 0
A83: Пром. | B83: Хлеб пшеничный | C83: 20 | D83: 1.52 | E83: 0.16 | F83: 9.84 | G83: 46.9 | H83: 0.02 | I83: 0.01 | J83: 0 | K83: 0 | L83: 0 | M83: 100 | N83: 19 | O83: 4 | P83: 3 | Q83: 13 | R83: 0.2 | S83: 0.64 | T83: 1.2 | U83: 2.9
A84: Пром. | B84: Хлеб ржаной | C84: 20 | D84: 1.3 | E84: 0.2 | F84: 6.7 | G84: 34.2 | H84: 0.04 | I84: 0.02 | J84: 0 | K84: 0 | L84: 0 | M84: 122 | N84: 49 | O84: 7 | P84: 9.4 | Q84: 31.6 | R84: 0.78 | S84: 0 | T84: 6.18 | U84: 0
A85: Пром. | B85: Сушка простая | C85: 14 | D85: 1.53 | E85: 0.18 | F85: 9.63 | G85: 46.3 | H85: 0.03 | I85: 0.01 | J85: 0 | K85: 0 | L85: 0 | M85: 85 | N85: 26 | O85: 4 | P85: 6 | Q85: 17 | R85: 0.4 | S85: 0 | T85: 0 | U85: 0
B86: Итого за завтрак | C86: =SUM(C80:C85) -> 604 | D86: =SUM(D80:D85) -> 8.75 | E86: =SUM(E80:E85) -> 12.64 | F86: 68.47 | G86: 422.8 | H86: 0.19 | I86: 0.05 | J86: 0.6 | K86: 0 | L86: 9.34 | M86: 307.68 | N86: 114.76 | O86: 148.48 | P86: 75.13 | Q86: 180.48 | R86: 4.41 | S86: 0.64 | T86: 7.38 | U86: 2.9
B87: Обед | C87: 11-18
A88: 54-9з-2020 | B88: Салат из белокочанной капусты с морковью, яблоками и растительным маслом | C88: 100 | D88: 1.37 | E88: 10.15 | F88: 6.03 | G88: 120.9 | H88: 0.02 | I88: 0.03 | J88: 241.63 | K88: 0 | L88: 11 | M88: 111 | N88: 221 | O88: 35 | P88: 17 | Q88: 27 | R88: 0.8 | S88: 16.44 | T88: 0.3 | U88: 18.3
A89: 54-11г-2020 | B89: Картофельное пюре | C89: 180 | D89: 3.69 | E89: 6.37 | F89: 23.79 | G89: 167.3 | H89: 0.14 | I89: 0.12 | J89: 28.55 | K89: 0.11 | L89: 12 | M89: 195 | N89: 750 | O89: 47 | P89: 34 | Q89: 101 | R89: 1.2 | S89: 34.15 | T89: 1 | U89: 51.35
A90: № рец. 290 | B90: Птица тушеная в соусе | C90: 50/50 | D90: 8.65 | E90: 6.84 | F90: 3.5 | G90: 145 | H90: 0.1 | I90: 0 | J90: 0 | K90: 0 | L90: 1.5 | M90: 0 | N90: 0 | O90: 26.4 | P90: 16.6 | Q90: 115.3 | R90: 0.9 | S90: 0 | T90: 0 | U90: 0
A91: № Т/к 438 | B91: Напиток яблочный | C91: 200 | D91: 0.1 | E91: 0.1 | F91: 13.9 | G91: 57.8 | H91: 0 | I91: 0 | J91: 0 | K91: 0 | L91: 1 | M91: 0 | N91: 0 | O91: 12.3 | P91: 3.7 | Q91: 2.4 | R91: 0.5 | S91: 0 | T91: 0 | U91: 0
A92: Пром. | B92: Хлеб ржаной | C92: 20 | D92: 1.3 | E92: 0.2 | F92: 6.7 | G92: 34.2 | H92: 0.04 | I92: 0.02 | J92: 0 | K92: 0 | L92: 0 | M92: 122 | N92: 49 | O92: 7 | P92: 9.4 | Q92: 31.6 | R92: 0.78 | S92: 0 | T92: 6.18 | U92: 0
A93: Пром. | B93: Хлеб пшеничный | C93: 20 | D93: 1.52 | E93: 0.16 | F93: 9.84 | G93: 46.9 | H93: 0.02 | I93: 0.01 | J93: 0 | K93: 0 | L93: 0 | M93: 100 | N93: 19 | O93: 4 | P93: 3 | Q93: 13 | R93: 0.2 | S93: 0.64 | T93: 1.2 | U93: 2.9
B94: Итого за обед | C94: 620 | D94: =SUM(D88:D93) -> 16.63 | E94: =SUM(E88:E93) -> 23.82 | F94: 63.76 | G94: 572.1 | H94: 0.32 | I94: 0.18 | J94: 270.18 | K94: 0.11 | L94: 25.5 | M94: 528 | N94: 1039 | O94: 131.7 | P94: 83.7 | Q94: 290.3 | R94: 4.38 | S94: 51.23 | T94: 8.68 | U94: 72.55
B95: Итого за день | C95: =C94+C86 -> 1224 | D95: 25.38 | E95: 36.46 | F95: 132.23 | G95: 994.9 | H95: 0.51 | I95: 0.23 | J95: 270.78 | K95: 0.11 | L95: 34.84 | M95: 835.68 | N95: 1153.76 | O95: 280.18 | P95: 158.83 | Q95: 470.78 | R95: 8.79 | S95: 51.87 | T95: 16.06 | U95: 75.45
A97: 5 день, 1 неделя
A98: № рецептуры | B98: Прием пищи, наименование блюда | C98: Масса | D98: Пищевые вещества | G98: Энергетическая ценность | H98: Витамины | M98: Минеральные вещества
D99: Белки | E99: Жиры | F99: Углеводы | H99: B1 | I99: B2 | J99: A | K99: D | L99: C | M99: Na | N99: K | O99: Ca | P99: Mg | Q99: P | R99: Fe | S99: I | T99: Se | U99: F
C100: г | D100: г | E100: г | F100: г | G100: ккал | H100: мг | I100: мг | J100: мкг рет.экв | K100: мкг | L100: мг | M100: мг | N100: мг | O100: мг | P100: мг | Q100: мг | R100: мг | S100: мкг | T100: мкг | U100: мкг
B101: Пятница, 1 неделя
B102: Завтрак | C102: 11-18
A103: 54-6о | B103: Яйцо вареное (1 шт) | C103: 40 | D103: 3.28 | E103: 2.05 | F103: 0.25 | G103: 56.6 | H103: 0.02 | I103: 0.14 | J103: 62.4 | K103: 0.88 | L103: 0 | M103: 41 | N103: 46 | O103: 19 | P103: 4 | Q103: 67 | R103: 0.9 | S103: 8 | T103: 10.8 | U103: 22
A104: № Т/к №110 | B104: Бульон с лапшой домашней | C104: 250 | D104: 7.4 | E104: 2.3 | F104: 37.2 | G104: 200.5 | H104: 0.1 | I104: 0 | J104: 0.1 | K104: 0 | L104: 0.2 | M104: 0 | N104: 0 | O104: 33.6 | P104: 13.2 | Q104: 72.6 | R104: 0.9 | S104: 0 | T104: 0 | U104: 0
A105: 54-21гн-2020 | B105: Какао с молоком | C105: 200 | D105: 4.7 | E105: 3.5 | F105: 12.5 | G105: 100.4 | H105: 0.04 | I105: 0.16 | J105: 17.25 | K105: 0 | L105: 0.68 | M105: 49.95 | N105: 220.33 | O105: 167.68 | P105: 34.32 | Q105: 130.28 | R105: 1.09 | S105: 11.7 | T105: 2.29 | U105: 38.25
A106: Пром. | B106: Хлеб пшеничный | C106: 20 | D106: 1.52 | E106: 0.16 | F106: 9.84 | G106: 46.9 | H106: 0.02 | I106: 0.01 | J106: 0 | K106: 0 | L106: 0 | M106: 100 | N106: 19 | O106: 4 | P106: 3 | Q106: 13 | R106: 0.2 | S106: 0.64 | T106: 1.2 | U106: 2.9
A107: Пром. | B107: Хлеб ржаной | C107: 20 | D107: 1.3 | E107: 0.2 | F107: 6.7 | G107: 34.2 | H107: 0.04 | I107: 0.02 | J107: 0 | K107: 0 | L107: 0 | M107: 122 | N107: 49 | O107: 7 | P107: 9.4 | Q107: 31.6 | R107: 0.78 | S107: 0 | T107: 6.18 | U107: 0
B108: Итого за завтрак | C108: =SUM(C103:C107) -> 530 | D108: =SUM(D103:D107) -> 18.2 | E108: =SUM(E103:E107) -> 8.21 | F108: 66.49 | G108: 438.6 | H108: 0.22 | I108: 0.33 | J108: 79.75 | K108: 0.88 | L108: 0.88 | M108: 312.95 | N108: 334.33 | O108: 231.28 | P108: 63.92 | Q108: 314.48 | R108: 3.87 | S108: 20.34 | T108: 20.47 | U108: 63.15
B109: Обед | C109: 11-18
A110: 54-11з-2020 | B110: Салат из моркови с яблоками с растительным маслом | C110: 100 | D110: 0.91 | E110: 10.17 | F110: 7.15 | G110: 123.8 | H110: 0.04 | I110: 0.03 | J110: 732.9 | K110: 0 | L110: 2 | M110: 114 | N110: 170 | O110: 19 | P110: 22 | Q110: 32 | R110: 1 | S110: 16.98 | T110: 0.2 | U110: 35.95
A111: 54-6г-2020 | B111: Плов из говядины | C111: 180/40 | D111: 16.86 | E111: 16.22 | F111: 42.44 | G111: 383.1 | H111: 0.07 | I111: 0.13 | J111: 287.76 | K111: 0.11 | L111: 0 | M111: 304 | N111: 295 | O111: 128 | P111: 48 | Q111: 213 | R111: 2.4 | S111: 42.53 | T111: 8.1 | U111: 89.91
A112: 54-4гн-2020 | B112: Компот из кураги | C112: 200 | D112: 0.98 | E112: 0.05 | F112: 15.64 | G112: 66.9 | H112: 0.01 | I112: 0.03 | J112: 69.96 | K112: 0 | L112: 0 | M112: 3 | N112: 285 | O112: 90 | P112: 18 | Q112: 25 | R112: 0.6 | S112: 0 | T112: 0 | U112: 0
A113: Пром. | B113: Хлеб ржаной | C113: 20 | D113: 1.3 | E113: 0.2 | F113: 6.7 | G113: 34.2 | H113: 0.04 | I113: 0.02 | J113: 0 | K113: 0 | L113: 0 | M113: 122 | N113: 49 | O113: 7 | P113: 9.4 | Q113: 31.6 | R113: 0.78 | S113: 0 | T113: 6.18 | U113: 0
A114: Пром. | B114: Булочка ванильная | C114: 60 | D114: 4.68 | E114: 4.03 | F114: 30.46 | G114: 177 | H114: 0.05 | I114: 0.02 | J114: 19.12 | K114: 0.15 | L114: 0 | M114: 241 | N114: 50 | O114: 18 | P114: 6 | Q114: 41 | R114: 0.5 | S114: 33.36 | T114: 3.1 | U114: 11.03
B115: Итого за обед | C115: 600 | D115: =SUM(D110:D114) -> 24.73 | E115: =SUM(E110:E114) -> 30.67 | F115: 102.39 | G115: 785 | H115: 0.21 | I115: 0.23 | J115: 1109.74 | K115: 0.26 | L115: 2 | M115: 784 | N115: 849 | O115: 262 | P115: 103.4 | Q115: 342.6 | R115: 5.28 | S115: 92.87 | T115: 17.58 | U115: 136.89
B116: Итого за день | C116: =C115+C108 -> 1130 | D116: =D115+D108 -> 42.93 | E116: 38.88 | F116: 168.88 | G116: 1223.6 | H116: 0.43 | I116: 0.56 | J116: 1189.49 | K116: 1.14 | L116: 2.88 | M116: 1096.95 | N116: 1183.33 | O116: 493.28 | P116: 167.32 | Q116: 657.08 | R116: 9.15 | S116: 113.21 | T116: 38.05 | U116: 200.04
A119: 6 день, 1 неделя
A120: № рецептуры | B120: Прием пищи, наименование блюда | C120: Масса | D120: Пищевые вещества | G120: Энергетическая ценность | H120: Витамины | M120: Минеральные вещества
D121: Белки | E121: Жиры | F121: Углеводы | H121: B1 | I121: B2 | J121: A | K121: D | L121: C | M121: Na | N121: K | O121: Ca | P121: Mg | Q121: P | R121: Fe | S121: I | T121: Se | U121: F
C122: г | D122: г | E122: г | F122: г | G122: ккал | H122: мг | I122: мг | J122: мкг рет.экв | K122: мкг | L122: мг | M122: мг | N122: мг | O122: мг | P122: мг | Q122: мг | R122: мг | S122: мкг | T122: мкг | U122: мкг
B123: Пятница, 1 неделя
B124: Горячий завтрак | C124: 11-18
A125: 54-16з-2020 | B125: Винегрет с растительным маслом | C125: 100 | D125: 1.17 | E125: 8.95 | F125: 6.67 | G125: 111.9 | H125: 0.03 | I125: 0.02 | J125: 121.48 | K125: 0 | L125: 5 | M125: 335 | N125: 214 | O125: 20 | P125: 16 | Q125: 36 | R125: 0.8 | S125: 13.1 | T125: 0.3 | U125: 19.75
A126: 54-1т-2020 | B126: Запеканка из творога | C126: 180 | D126: 35.58 | E126: 12.81 | F126: 26.95 | G126: 361.4 | H126: 0.07 | I126: 0.38 | J126: 61.35 | K126: 0.18 | L126: 0 | M126: 217 | N126: 193 | O126: 268 | P126: 38 | Q126: 349 | R126: 1 | S126: 34.58 | T126: 47 | U126: 59.55
A127: Пром. | B127: Молоко сгущенное с сахаром | C127: 20 | D127: 1.44 | E127: 1.7 | F127: 11.1 | G127: 65.5 | H127: 0.01 | I127: 0.08 | J127: 9.4 | K127: 0 | L127: 0 | M127: 26 | N127: 73 | O127: 61 | P127: 7 | Q127: 44 | R127: 0 | S127: 1.4 | T127: 0.6 | U127: 7
A128: 54-21гн-2020 | B128: Кофейный напиток с молоком | C128: 200 | D128: 3.9 | E128: 2.9 | F128: 11.2 | G128: 86 | H128: 0.03 | I128: 0.13 | J128: 13.29 | K128: 0 | L128: 0.52 | M128: 38.55 | N128: 183.98 | O128: 148.32 | P128: 30.67 | Q128: 106.79 | R128: 1.06 | S128: 9 | T128: 1.76 | U128: 20
A129: Пром. | B129: Хлеб ржаной | C129: 20 | D129: 1.3 | E129: 0.2 | F129: 6.7 | G129: 34.2 | H129: 0.04 | I129: 0.02 | J129: 0 | K129: 0 | L129: 0 | M129: 122 | N129: 49 | O129: 7 | P129: 9.4 | Q129: 31.6 | R129: 0.78 | S129: 0 | T129: 6.18 | U129: 0
A130: Пром. | B130: Хлеб пшеничный | C130: 20 | D130: 1.52 | E130: 0.16 | F130: 9.84 | G130: 46.9 | H130: 0.02 | I130: 0.01 | J130: 0 | K130: 0 | L130: 0 | M130: 100 | N130: 19 | O130: 4 | P130: 3 | Q130: 13 | R130: 0.2 | S130: 0.64 | T130: 1.2 | U130: 2.9
A131: Пром. | B131: Сушка простая | C131: 10 | D131: 1.09 | E131: 0.13 | F131: 6.88 | G131: 33.1 | H131: 0.02 | I131: 0.01 | J131: 0 | K131: 0 | L131: 0 | M131: 46 | N131: 15 | O131: 3 | P131: 4 | Q131: 11 | R131: 0.3 | S131: 0 | T131: 0 | U131: 0
B132: Итого за Завтрак | C132: =SUM(C125:C131) -> 550 | D132: =SUM(D125:D131) -> 46 | E132: 26.85 | F132: 79.34 | G132: 739 | H132: 0.22 | I132: 0.65 | J132: 205.52 | K132: 0.18 | L132: 5.52 | M132: 884.55 | N132: 746.98 | O132: 511.32 | P132: 108.07 | Q132: 591.39 | R132: 4.14 | S132: 58.72 | T132: 57.04 | U132: 109.2
B133: Итого за день | C133: =C132 -> 550 | D133: =D132 -> 46 | E133: =E132 -> 26.85 | F133: 79.34 | G133: 739 | H133: 0.22 | I133: 0.65 | J133: 205.52 | K133: 0.18 | L133: 5.52 | M133: 884.55 | N133: 746.98 | O133: 511.32 | P133: 108.07 | Q133: 591.39 | R133: 4.14 | S133: 58.72 | T133: 57.04 | U133: 109.2
A135: 7 день, 2 неделя
A136: № рецептуры | B136: Прием пищи, наименование блюда | C136: Масса | D136: Пищевые вещества | G136: Энергетическая ценность | H136: Витамины | M136: Минеральные вещества
D137: Белки | E137: Жиры | F137: Углеводы | H137: B1 | I137: B2 | J137: A | K137: D | L137: C | M137: Na | N137: K | O137: Ca | P137: Mg | Q137: P | R137: Fe | S137: I | T137: Se | U137: F
C138: г | D138: г | E138: г | F138: г | G138: ккал | H138: мг | I138: мг | J138: мкг рет.экв | K138: мкг | L138: мг | M138: мг | N138: мг | O138: мг | P138: мг | Q138: мг | R138: мг | S138: мкг | T138: мкг | U138: мкг
B139: Понедельник, 2 неделя
B140: Завтрак | C140: 11-18
A141: № Т/К 40 | B141: Салат картофельный с морковью и растительным маслом | C141: 100 | D141: 2.4 | E141: 7.2 | F141: 8.9 | G141: 110.4 | H141: 0.1 | I141: 0 | J141: 0.6 | K141: 0 | L141: 5.6 | M141: 0 | N141: 0 | O141: 25 | P141: 21.9 | Q141: 55.7 | R141: 1 | S141: 0 | T141: 0 | U141: 0
A142: 54-1г-2020 | B142: Макароны отварные | C142: 180 | D142: 6.39 | E142: 5.91 | F142: 39.36 | G142: 236.2 | H142: 0.07 | I142: 0.03 | J142: 22.03 | K142: 0.11 | L142: 0 | M142: 179 | N142: 64 | O142: 127 | P142: 9 | Q142: 48 | R142: 0.9 | S142: 24.92 | T142: 0.1 | U142: 14.31
A143: №243 | B143: Сосиски говяжьи отварные, п/ф (2 шт) | C143: 100 | D143: 6.6 | E143: 10.35 | F143: 6.5 | G143: 202.15 | H143: 0 | I143: 0 | J143: 0.08 | K143: 0.01 | L143: 0 | M143: 0 | N143: 0 | O143: 7.44 | P143: 15.51 | Q143: 137.39 | R143: 1.74 | S143: 0 | T143: 0 | U143: 0
A144: 54-2гн-2020 | B144: Чай -заварка | C144: 200 | D144: 0.2 | E144: 0 | F144: 6.4 | G144: 26.8 | H144: 0 | I144: 0.01 | J144: 0.3 | K144: 0 | L144: 0.04 | M144: 0.68 | N144: 20.76 | O144: 66.08 | P144: 3.83 | Q144: 7.18 | R144: 0.73 | S144: 0 | T144: 0 | U144: 0
A145: Пром. | B145: Хлеб пшеничный | C145: 20 | D145: 1.52 | E145: 0.16 | F145: 9.84 | G145: 46.9 | H145: 0.02 | I145: 0.01 | J145: 0 | K145: 0 | L145: 0 | M145: 100 | N145: 19 | O145: 4 | P145: 3 | Q145: 13 | R145: 0.2 | S145: 0.64 | T145: 1.2 | U145: 2.9
A146: Пром. | B146: Хлеб ржаной | C146: 20 | D146: 1.3 | E146: 0.2 | F146: 6.7 | G146: 34.2 | H146: 0.04 | I146: 0.02 | J146: 0 | K146: 0 | L146: 0 | M146: 122 | N146: 49 | O146: 7 | P146: 9.4 | Q146: 31.6 | R146: 0.78 | S146: 0 | T146: 6.18 | U146: 0
B147: Итого за завтрак | C147: =SUM(C141:C146) -> 620 | D147: =SUM(D141:D146) -> 18.41 | E147: =SUM(E141:E146) -> 23.82 | F147: 77.7 | G147: 656.65 | H147: 0.23 | I147: 0.07 | J147: 23.01 | K147: 0.12 | L147: 5.64 | M147: 401.68 | N147: 152.76 | O147: 236.52 | P147: 62.64 | Q147: 292.87 | R147: 5.35 | S147: 25.56 | T147: 7.48 | U147: 17.21
B148: Обед | C148: 11-18
A149: №Т/К 41 | B149: Салат из моркови с сахаром и растительным маслом | C149: 100 | D149: 0.91 | E149: 10.17 | F149: 7.15 | G149: 123.8 | H149: 0.04 | I149: 0.03 | J149: 732.9 | K149: 0 | L149: 2 | M149: 114 | N149: 170 | O149: 19 | P149: 22 | Q149: 32 | R149: 1 | S149: 16.98 | T149: 0.2 | U149: 35.95
A150: 62 | B150: Борщ | C150: 250 | D150: 3.1 | E150: 7.3 | F150: 16.5 | G150: 180 | H150: 0.1 | I150: 0 | J150: 0.3 | K150: 0 | L150: 12 | M150: 0 | N150: 0 | O150: 55 | P150: 33.4 | Q150: 72.4 | R150: 1.6 | S150: 0 | T150: 0 | U150: 0
A151: 54-2гн-2020 | B151: Чай с сахаром | C151: 200 | D151: 0.2 | E151: 0 | F151: 6.4 | G151: 26.8 | H151: 0 | I151: 0.01 | J151: 0.3 | K151: 0 | L151: 0.04 | M151: 0.68 | N151: 20.76 | O151: 66.08 | P151: 3.83 | Q151: 7.18 | R151: 0.73 | S151: 0 | T151: 0 | U151: 0
A152: т/к №410 | B152: Треугольник П/Ф | C152: 70 | D152: 5.7 | E152: 5 | F152: 29.8 | G152: 221.7 | H152: 0.1 | I152: 0 | J152: 0 | K152: 0 | L152: 1.5 | M152: 0 | N152: 0 | O152: 26.8 | P152: 25.7 | Q152: 100.5 | R152: 1.5 | S152: 0 | T152: 0 | U152: 0
A153: Пром. | B153: Хлеб ржаной | C153: 20 | D153: 1.3 | E153: 0.2 | F153: 6.7 | G153: 34.2 | H153: 0.04 | I153: 0.02 | J153: 0 | K153: 0 | L153: 0 | M153: 122 | N153: 49 | O153: 7 | P153: 9.4 | Q153: 31.6 | R153: 0.78 | S153: 0 | T153: 6.18 | U153: 0
B154: Итого за обед | C154: =SUM(C149:C153) -> 640 | D154: =SUM(D149:D153) -> 11.21 | E154: 22.67 | F154: 66.55 | G154: 586.5 | H154: 0.28 | I154: 0.06 | J154: 733.5 | K154: 0 | L154: 15.54 | M154: 236.68 | N154: 239.76 | O154: 173.88 | P154: 94.33 | Q154: 243.68 | R154: 5.61 | S154: 16.98 | T154: 6.38 | U154: 35.95
B155: Итого за день | C155: =C154+C147 -> 1260 | D155: =D154+D147 -> 29.62 | E155: 46.49 | F155: 144.25 | G155: 1243.15 | H155: 0.51 | I155: 0.13 | J155: 756.51 | K155: 0.12 | L155: 21.18 | M155: 638.36 | N155: 392.52 | O155: 410.4 | P155: 156.97 | Q155: 536.55 | R155: 10.96 | S155: 42.54 | T155: 13.86 | U155: 53.16
A157: 8 день, 2 неделя
A158: № рецептуры | B158: Прием пищи, наименование блюда | C158: Масса | D158: Пищевые вещества | G158: Энергетическая ценность | H158: Витамины | M158: Минеральные вещества
D159: Белки | E159: Жиры | F159: Углеводы | H159: B1 | I159: B2 | J159: A | K159: D | L159: C | M159: Na | N159: K | O159: Ca | P159: Mg | Q159: P | R159: Fe | S159: I | T159: Se | U159: F
C160: г | D160: г | E160: г | F160: г | G160: ккал | H160: мг | I160: мг | J160: мкг рет.экв | K160: мкг | L160: мг | M160: мг | N160: мг | O160: мг | P160: мг | Q160: мг | R160: мг | S160: мкг | T160: мкг | U160: мкг
B161: Вторник, 2 неделя
B162: Завтрак | C162: 11-18
A163: № т/к 15 | B163: Салат из отварной моркови (порциями) | C163: 100 | D163: 1.3 | E163: 0.1 | F163: 6.9 | G163: 35 | H163: 0.1 | I163: 0 | J163: 2.5 | K163: 0 | L163: 5 | M163: 0 | N163: 0 | O163: 51 | P163: 38 | Q163: 55 | R163: 1 | S163: 0 | T163: 0 | U163: 0
A164: № Т/к №110 | B164: Бульон с лапшой домашней | C164: 250 | D164: 7.4 | E164: 2.3 | F164: 37.2 | G164: 200.5 | H164: 0.1 | I164: 0 | J164: 0.1 | K164: 0 | L164: 0.2 | M164: 0 | N164: 0 | O164: 33.6 | P164: 13.2 | Q164: 72.6 | R164: 0.9 | S164: 0 | T164: 0 | U164: 0
A165: № Т/к 438 | B165: Напиток яблочный | C165: 200 | D165: 0.1 | E165: 0.1 | F165: 13.9 | G165: 57.8 | H165: 0 | I165: 0 | J165: 0 | K165: 0 | L165: 1 | M165: 0 | N165: 0 | O165: 12.3 | P165: 3.7 | Q165: 2.4 | R165: 0.5 | S165: 0 | T165: 0 | U165: 0
A166: Пром. | B166: Хлеб пшеничный | C166: 20 | D166: 1.52 | E166: 0.16 | F166: 9.84 | G166: 46.9 | H166: 0.02 | I166: 0.01 | J166: 0 | K166: 0 | L166: 0 | M166: 100 | N166: 19 | O166: 4 | P166: 3 | Q166: 13 | R166: 0.2 | S166: 0.64 | T166: 1.2 | U166: 2.9
A167: Пром. | B167: Хлеб ржаной | C167: 20 | D167: 1.3 | E167: 0.2 | F167: 6.7 | G167: 34.2 | H167: 0.04 | I167: 0.02 | J167: 0 | K167: 0 | L167: 0 | M167: 122 | N167: 49 | O167: 7 | P167: 9.4 | Q167: 31.6 | R167: 0.78 | S167: 0 | T167: 6.18 | U167: 0
B168: Итого за завтрак | C168: =SUM(C163:C167) -> 590 | D168: =SUM(D163:D167) -> 11.62 | E168: =SUM(E163:E167) -> 2.86 | F168: 74.54 | G168: 374.4 | H168: 0.26 | I168: 0.03 | J168: 2.6 | K168: 0 | L168: 6.2 | M168: 222 | N168: 68 | O168: 107.9 | P168: 67.3 | Q168: 174.6 | R168: 3.38 | S168: 0.64 | T168: 7.38 | U168: 2.9
B169: Обед | C169: 11-18
A170: 54-13з | B170: Салат из свеклы отварной с растительным маслом | C170: 100 | D170: 1.34 | E170: 4.48 | F170: 7.61 | G170: 76.1 | H170: 0.01 | I170: 0.03 | J170: 1.14 | K170: 0 | L170: 4 | M170: 131 | N170: 227 | O170: 32 | P170: 18 | Q170: 36 | R170: 1.2 | S170: 19.98 | T170: 0.6 | U170: 19
A171: 54-12м-2020 | B171: Плов с курицей | C171: 170/50 | D171: 20.34 | E171: 8.18 | F171: 36.38 | G171: 300.4 | H171: 0.08 | I171: 0.07 | J171: 159.36 | K171: 0 | L171: 2 | M171: 301 | N171: 316 | O171: 80 | P171: 87 | Q171: 193 | R171: 1.7 | S171: 41.15 | T171: 21.6 | U171: 129.9
A172: 54-3гн-2020 | B172: Чай с лимоном и сахаром | C172: 207 | D172: 0.2 | E172: 0.1 | F172: 6.6 | G172: 27.9 | H172: 0 | I172: 0.01 | J172: 0.38 | K172: 0 | L172: 1.16 | M172: 1.26 | N172: 30.23 | O172: 67 | P172: 4.56 | Q172: 8.52 | R172: 0.77 | S172: 0.01 | T172: 0.02 | U172: 0.7
A173: Пром. | B173: Хлеб пшеничный | C173: 20 | D173: 1.52 | E173: 0.16 | F173: 9.84 | G173: 46.9 | H173: 0.02 | I173: 0.01 | J173: 0 | K173: 0 | L173: 0 | M173: 100 | N173: 19 | O173: 4 | P173: 3 | Q173: 13 | R173: 0.2 | S173: 0.64 | T173: 1.2 | U173: 2.9
A174: Пром. | B174: Хлеб ржаной | C174: 20 | D174: 1.3 | E174: 0.2 | F174: 6.7 | G174: 34.2 | H174: 0.04 | I174: 0.02 | J174: 0 | K174: 0 | L174: 0 | M174: 122 | N174: 49 | O174: 7 | P174: 9.4 | Q174: 31.6 | R174: 0.78 | S174: 0 | T174: 6.18 | U174: 0
A175: Пром. | B175: Фрукт (яблоко, банан, апельсин) | C175: 100 | D175: 0.6 | E175: 0.6 | F175: 14.7 | G175: 66.6 | H175: 0.04 | I175: 0.03 | J175: 7.5 | K175: 0 | L175: 15 | M175: 39 | N175: 417 | O175: 24 | P175: 14 | Q175: 17 | R175: 3.3 | S175: 3 | T175: 0.4 | U175: 12
B176: Итого за обед | C176: 667 | D176: =SUM(D170:D175) -> 25.3 | E176: =SUM(E170:E175) -> 13.72 | F176: 81.83 | G176: 552.1 | H176: 0.19 | I176: 0.17 | J176: 168.38 | K176: 0 | L176: 22.16 | M176: 694.26 | N176: 1058.23 | O176: 214 | P176: 135.96 | Q176: 299.12 | R176: 7.95 | S176: 64.78 | T176: 30 | U176: 164.5
B177: Итого за день | C177: =C176+C168 -> 1257 | D177: 36.92 | E177: 16.58 | F177: 156.37 | G177: 926.5 | H177: 0.45 | I177: 0.2 | J177: 170.98 | K177: 0 | L177: 28.36 | M177: 916.26 | N177: 1126.23 | O177: 321.9 | P177: 203.26 | Q177: 473.72 | R177: 11.33 | S177: 65.42 | T177: 37.38 | U177: 167.4
A179: 9 день, 2 неделя
A180: № рецептуры | B180: Прием пищи, наименование блюда | C180: Масса | D180: Пищевые вещества | G180: Энергетическая ценность | H180: Витамины | M180: Минеральные вещества
D181: Белки | E181: Жиры | F181: Углеводы | H181: B1 | I181: B2 | J181: A | K181: D | L181: C | M181: Na | N181: K | O181: Ca | P181: Mg | Q181: P | R181: Fe | S181: I | T181: Se | U181: F
C182: г | D182: г | E182: г | F182: г | G182: ккал | H182: мг | I182: мг | J182: мкг рет.экв | K182: мкг | L182: мг | M182: мг | N182: мг | O182: мг | P182: мг | Q182: мг | R182: мг | S182: мкг | T182: мкг | U182: мкг
B183: Среда, 2 неделя
B184: Завтрак | C184: 11-18
A185: Пром. | B185: Сушка простая | C185: 14 | D185: 1.53 | E185: 0.18 | F185: 9.63 | G185: 46.3 | H185: 0.03 | I185: 0.01 | J185: 0 | K185: 0 | L185: 0 | M185: 85 | N185: 26 | O185: 4 | P185: 6 | Q185: 17 | R185: 0.4 | S185: 0 | T185: 0 | U185: 0
A186: № Т/к 67 | B186: Щи из свежей капусты с картофелем | C186: 250 | D186: 1.9 | E186: 5.1 | F186: 9.3 | G186: 90.5 | H186: 0 | I186: 0 | J186: 0.2 | K186: 0 | L186: 12.4 | M186: 0 | N186: 0 | O186: 41.5 | P186: 22 | Q186: 42.7 | R186: 1.1 | S186: 0 | T186: 0 | U186: 0
A187: № Т/К 440 | B187: Напиток из сухофруктов | C187: 200 | D187: 0 | E187: 0 | F187: 14.6 | G187: 58.1 | H187: 0 | I187: 0 | J187: 0 | K187: 0 | L187: 0 | M187: 0 | N187: 0 | O187: 8.4 | P187: 1.8 | Q187: 0 | R187: 0 | S187: 0 | T187: 0 | U187: 0
A188: Пром. | B188: Хлеб пшеничный | C188: 20 | D188: 1.52 | E188: 0.16 | F188: 9.84 | G188: 46.9 | H188: 0.02 | I188: 0.01 | J188: 0 | K188: 0 | L188: 0 | M188: 100 | N188: 19 | O188: 4 | P188: 3 | Q188: 13 | R188: 0.2 | S188: 0.64 | T188: 1.2 | U188: 2.9
A189: Пром. | B189: Хлеб ржаной | C189: 20 | D189: 1.3 | E189: 0.2 | F189: 6.7 | G189: 34.2 | H189: 0.04 | I189: 0.02 | J189: 0 | K189: 0 | L189: 0 | M189: 122 | N189: 49 | O189: 7 | P189: 9.4 | Q189: 31.6 | R189: 0.78 | S189: 0 | T189: 6.18 | U189: 0
B190: Итого за завтрак | C190: =SUM(C185:C189) -> 504 | D190: =SUM(D185:D189) -> 6.25 | E190: =SUM(E185:E189) -> 5.64 | F190: 50.07 | G190: 276 | H190: 0.09 | I190: 0.04 | J190: 0.2 | K190: 0 | L190: 12.4 | M190: 307 | N190: 94 | O190: 64.9 | P190: 42.2 | Q190: 104.3 | R190: 2.48 | S190: 0.64 | T190: 7.38 | U190: 2.9
B191: Обед | C191: 11-18
A192: 54-16з-2020 | B192: Винегрет с растительным маслом | C192: 100 | D192: 1.17 | E192: 8.95 | F192: 6.67 | G192: 111.9 | H192: 0.03 | I192: 0.02 | J192: 121.48 | K192: 0 | L192: 5 | M192: 335 | N192: 214 | O192: 20 | P192: 16 | Q192: 36 | R192: 0.8 | S192: 13.1 | T192: 0.3 | U192: 19.75
A193: 54-11г-2020 | B193: Картофельное пюре | C193: 180 | D193: 3.69 | E193: 6.37 | F193: 23.79 | G193: 167.3 | H193: 0.14 | I193: 0.12 | J193: 28.55 | K193: 0.11 | L193: 12 | M193: 195 | N193: 750 | O193: 47 | P193: 34 | Q193: 101 | R193: 1.2 | S193: 34.15 | T193: 1 | U193: 51.35
A194: 54-7р-2020 | B194: Рыба припущенная в молоко | C194: 70/30 | D194: 13.09 | E194: 7.52 | F194: 2.89 | G194: 131.6 | H194: 0.08 | I194: 0.11 | J194: 9.02 | K194: 0.16 | L194: 1 | M194: 111 | N194: 347 | O194: 68 | P194: 44 | Q194: 202 | R194: 0.7 | S194: 133.48 | T194: 11.9 | U194: 572.6
A195: №Т/К 436 | B195: Напиток апельсиновый | C195: 200 | D195: 0.2 | E195: 0 | F195: 13 | G195: 53.5 | H195: 0 | I195: 0 | J195: 0 | K195: 0 | L195: 4 | M195: 0 | N195: 0 | O195: 13.5 | P195: 3.8 | Q195: 3.5 | R195: 0.1 | S195: 0 | T195: 0 | U195: 0
A196: Пром. | B196: Хлеб ржаной | C196: 20 | D196: 1.3 | E196: 0.2 | F196: 6.7 | G196: 34.2 | H196: 0.04 | I196: 0.02 | J196: 0 | K196: 0 | L196: 0 | M196: 122 | N196: 49 | O196: 7 | P196: 9.4 | Q196: 31.6 | R196: 0.78 | S196: 0 | T196: 6.18 | U196: 0
A197: Пром. | B197: Булочка ванильная | C197: 60 | D197: 4.68 | E197: 4.03 | F197: 30.46 | G197: 177 | H197: 0.05 | I197: 0.02 | J197: 19.12 | K197: 0.15 | L197: 0 | M197: 241 | N197: 50 | O197: 18 | P197: 6 | Q197: 41 | R197: 0.5 | S197: 33.36 | T197: 3.1 | U197: 11.03
B198: Итого за обед | C198: 660 | D198: =SUM(D192:D197) -> 24.13 | E198: =SUM(E192:E197) -> 27.07 | F198: 83.51 | G198: =SUM(G192:G197) -> 675.5 | H198: 0.34 | I198: 0.29 | J198: 178.17 | K198: 0.42 | L198: 22 | M198: 1004 | N198: 1410 | O198: 173.5 | P198: 113.2 | Q198: 415.1 | R198: 4.08 | S198: 214.09 | T198: 22.48 | U198: 654.73
B199: Итого за день | C199: =C198+C190 -> 1164 | D199: 30.38 | E199: 32.71 | F199: 133.58 | G199: 951.5 | H199: 0.43 | I199: 0.33 | J199: 178.37 | K199: 0.42 | L199: 34.4 | M199: 1311 | N199: 1504 | O199: 238.4 | P199: 155.4 | Q199: 519.4 | R199: 6.56 | S199: 214.73 | T199: 29.86 | U199: 657.63
A201: 10 день, 2 неделя
A202: № рецептуры | B202: Прием пищи, наименование блюда | C202: Масса | D202: Пищевые вещества | G202: Энергетическая ценность | H202: Витамины | M202: Минеральные вещества
D203: Белки | E203: Жиры | F203: Углеводы | H203: B1 | I203: B2 | J203: A | K203: D | L203: C | M203: Na | N203: K | O203: Ca | P203: Mg | Q203: P | R203: Fe | S203: I | T203: Se | U203: F
C204: г | D204: г | E204: г | F204: г | G204: ккал | H204: мг | I204: мг | J204: мкг рет.экв | K204: мкг | L204: мг | M204: мг | N204: мг | O204: мг | P204: мг | Q204: мг | R204: мг | S204: мкг | T204: мкг | U204: мкг
B205: Четверг, 2 неделя
B206: Завтрак | C206: 11-18
A207: № Т/К 50 | B207: Салат свеколка с маслом растительным | C207: 100 | D207: 1.8 | E207: 10.1 | F207: 16.2 | G207: 163.2 | H207: 0 | I207: 0 | J207: 0.1 | K207: 0 | L207: 3.5 | M207: 0 | N207: 0 | O207: 45.5 | P207: 27.5 | Q207: 52.8 | R207: 1.5 | S207: 0 | T207: 0 | U207: 0
A208: № Т/к100 | B208: Суп картофельный с вермишелью | C208: 250 | D208: 2.8 | E208: 2.8 | F208: 20.2 | G208: 118 | H208: 0.1 | I208: 0 | J208: 0.2 | K208: 0 | L208: 6.6 | M208: 0 | N208: 0 | O208: 23.9 | P208: 23.4 | Q208: 57.7 | R208: 1.1 | S208: 0 | T208: 0 | U208: 0
A209: 54-3гн-2020 | B209: Чай с лимоном и сахаром | C209: 207 | D209: 0.2 | E209: 0.1 | F209: 6.6 | G209: 27.9 | H209: 0 | I209: 0.01 | J209: 0.38 | K209: 0 | L209: 1.16 | M209: 1.26 | N209: 30.23 | O209: 67 | P209: 4.56 | Q209: 8.52 | R209: 0.77 | S209: 0.01 | T209: 0.02 | U209: 0.7
A210: Пром. | B210: Хлеб ржаной | C210: 20 | D210: 1.3 | E210: 0.2 | F210: 6.7 | G210: 34.2 | H210: 0.04 | I210: 0.02 | J210: 0 | K210: 0 | L210: 0 | M210: 122 | N210: 49 | O210: 7 | P210: 9.4 | Q210: 31.6 | R210: 0.78 | S210: 0 | T210: 6.18 | U210: 0
A211: Пром. | B211: Хлеб пшеничный | C211: 20 | D211: 1.52 | E211: 0.16 | F211: 9.84 | G211: 46.9 | H211: 0.02 | I211: 0.01 | J211: 0 | K211: 0 | L211: 0 | M211: 100 | N211: 19 | O211: 4 | P211: 3 | Q211: 13 | R211: 0.2 | S211: 0.64 | T211: 1.2 | U211: 2.9
B212: Итого за завтрак | C212: =SUM(C207:C211) -> 597 | D212: =SUM(D207:D211) -> 7.62 | E212: =SUM(E207:E211) -> 13.36 | F212: 59.54 | G212: 390.2 | H212: 0.16 | I212: 0.04 | J212: 0.68 | K212: 0 | L212: 11.26 | M212: 223.26 | N212: 98.23 | O212: 147.4 | P212: 67.86 | Q212: 163.62 | R212: 4.35 | S212: 0.65 | T212: 7.4 | U212: 3.6
B213: Обед | C213: 11-18
... 52 more rows
